bitfinex-derivatives/quotes_SOLF0:USTF0_20250421
["timestamp","ask_amount","ask_price","bid_price","bid_amount"]
[1745247854777,18.89952796,139.23,139.18,568.56]
[1745247855179,0.05145408,139.22,139.18,568.56]
[1745247855483,7.1821,139.21,139.18,568.56]
[1745247855782,7.23295408,139.22,139.19,7.1825]
[1745247856184,0.05145408,139.22,139.18,568.56]
[1745247857283,0.05145408,139.22,139.2,7.182]
[1745247857878,7.23285408,139.22,139.19,7.1826]
[1745247858181,7.23285408,139.22,139.18,568.56]
[1745247858182,0.05145408,139.22,139.18,568.56]
[1745247858382,0.05145408,139.22,139.18,575.743]
[1745247858582,7.1821,139.21,139.18,7.183]
[1745247859286,7.23295408,139.22,139.19,7.1826]
[1745247859787,7.1818,139.21,139.19,7.1826]
[1745247859985,7.1818,139.21,139.18,7.1832]
[1745247860586,7.23295408,139.22,139.19,7.1826]
[1745247860787,0.05145408,139.22,139.17,30.44]
[1745247861286,7.1796,139.26,139.19,18.89952796]
[1745247861486,7.1796,139.26,139.2,7.449157]
[1745247861787,7.1796,139.26,139.24,7.1801]
[1745247861988,7.1789,139.27,139.24,7.1801]
[1745247862286,18.89952796,139.28,139.24,7.1801]
[1745247862488,7.22814544,139.27,139.24,7.22801666]
[1745247862686,0.04914544,139.27,139.24,7.22801666]
[1745247862982,7.22804544,139.27,139.24,7.22801666]
[1745247863187,0.04914544,139.27,139.24,7.22801666]
[1745247863387,0.04914544,139.27,139.24,0.04791666]
[1745247863789,7.1792,139.26,139.24,7.22811666]
[1745247863990,18.89952796,139.26,139.24,0.04791666]
[1745247864489,7.1797,139.25,139.24,0.04791666]
[1745247866385,0.04914544,139.27,139.24,0.04791666]
[1745247866591,0.04914544,139.27,139.24,7.22781666]
[1745247867490,7.1793,139.26,139.24,0.04791666]
[1745247868493,7.1793,139.26,139.24,7.22801666]
[1745247869394,7.22804544,139.27,139.24,7.22801666]
[1745247869891,0.04914544,139.27,139.24,0.04791666]
[1745247870187,0.04914544,139.27,139.25,37.91254773]
[1745247870392,18.89952796,139.33,139.25,32.6966]
[1745247870693,18.89952796,139.31,139.25,30.46]
[1745247870893,7.1775,139.3,139.27,7.1784]
[1745247871293,18.89952796,139.31,139.27,7.1784]
[1745247871594,0.05268167,139.3,139.27,0.05481086]
[1745247872794,7.23008167,139.3,139.27,7.23331086]
[1745247873095,0.05268167,139.3,139.27,0.05481086]
[1745247873287,0.05268167,139.3,139.28,7.1778]
[1745247874295,7.22978167,139.3,139.27,7.23321086]
[1745247875392,12.08556452,139.29,139.27,7.23321086]
[1745247875594,12.08556452,139.29,139.28,7.1782]
[1745247875895,12.08556452,139.29,139.27,0.05481086]
[1745247877696,12.08556452,139.29,139.27,7.23321086]
[1745247877896,19.26326452,139.29,139.27,0.05481086]
[1745247881098,19.26326452,139.29,139.27,7.23351086]
[1745247882195,19.26326452,139.29,139.27,0.05481086]
[1745247884702,19.26326452,139.29,139.27,7.23341086]
[1745247885001,12.13824619,139.3,139.27,0.05481086]
[1745247885396,0.05268167,139.3,139.29,12.08556452]
[1745247885591,569.80968578,139.39,139.29,19.52911313]
[1745247885592,12.08556452,139.38,139.29,19.52911313]
[1745247885792,2.2903,139.39,139.33,12.08556452]
[1745247885993,12.08556452,139.38,139.33,12.08556452]
[1745247886196,12.08556452,139.38,139.34,30.4]
[1745247886406,12.08556452,139.38,139.36,7.174]
[1745247886700,0.05210371,139.37,139.36,7.174]
[1745247887402,7.22600371,139.37,139.35,0.0500017]
[1745247887703,0.05210371,139.37,139.35,0.0500017]
[1745247887904,0.05210371,139.37,139.36,7.174]
[1745247894303,0.05210371,139.37,139.35,37.6243017]
[1745247894607,0.05210371,139.37,139.35,30.4500017]
[1745247894909,0.05210371,139.37,139.36,7.174]
[1745247896008,0.05210371,139.37,139.35,37.6244017]
[1745247896204,0.05210371,139.37,139.35,30.4500017]
[1745247896704,0.05210371,139.37,139.36,7.174]
[1745247899711,9.293,139.43,139.4,7.1716]
[1745247899911,2.1224,139.43,139.35,49.26460868]
[1745247900705,2.1224,139.43,139.4,7.1715]
[1745247901211,2.17745447,139.43,139.4,7.1715]
[1745247901411,9.34805447,139.43,139.4,7.1715]
[1745247902115,2.17745447,139.43,139.39,37.5525]
[1745247902316,2.17745447,139.43,139.39,30.38]
[1745247902510,0.05505447,139.43,139.39,30.38]
[1745247902716,0.05505447,139.43,139.42,7.1709]
[1745247903915,0.05505447,139.43,139.41,7.21830899]
[1745247904411,0.05505447,139.43,139.41,0.04710899]
[1745247904616,0.05505447,139.43,139.42,7.1709]
[1745247906416,0.05505447,139.43,139.41,0.04710899]
[1745247906918,0.05505447,139.43,139.37,37.5532]
[1745247907107,18.86460868,139.4,139.32,2.1414]
[1745247907310,18.86460868,139.4,139.34,30.38]
[1745247907614,7.1737,139.37,139.34,37.5548]
[1745247908014,7.22626412,139.37,139.34,37.60625828]
[1745247908313,0.05256412,139.37,139.35,7.1745]
[1745247908517,0.05256412,139.37,139.34,30.43145828]
[1745247908919,0.05256412,139.37,139.36,7.174]
[1745247909118,4.6193,139.43,139.34,30.43145828]
[1745247909419,4.6193,139.43,139.38,7.1728]
[1745247909626,4.6193,139.43,139.38,30.38]
[1745247909918,2.289,139.43,139.38,30.38]
[1745247910420,0.04660066,139.42,139.39,7.2266409]
[1745247910614,7.21790066,139.42,139.39,7.2266409]
[1745247910920,7.21790066,139.42,139.4,7.1717]
[1745247911119,0.04660066,139.42,139.39,0.0544409]
[1745247911519,0.04660066,139.42,139.4,7.1715]
[1745247912122,0.04660066,139.42,139.41,7.1715]
[1745247912416,2.1214,139.49,139.41,18.86460868]
[1745247912614,32.6268,139.51,139.45,7.1691]
[1745247912819,2.2868,139.51,139.45,7.1691]
[1745247913020,7.1679,139.48,139.45,7.1691]
[1745247913320,7.1679,139.48,139.46,7.1688]
[1745247913521,7.22093251,139.48,139.46,7.1688]
[1745247913721,0.05303251,139.48,139.46,7.1688]
[1745247914022,0.05303251,139.48,139.45,7.2202545]
[1745247914321,7.22133251,139.48,139.45,7.2202545]
[1745247915022,0.05303251,139.48,139.45,0.0510545]
[1745247915722,7.1686,139.47,139.45,0.0510545]
[1745247915921,0.05303251,139.48,139.45,0.0510545]
[1745247916220,7.1684,139.47,139.45,7.2204545]
[1745247918125,7.1689,139.46,139.45,0.0510545]
[1745247918320,0.05303251,139.48,139.45,0.0510545]
[1745247919218,7.1689,139.46,139.45,0.0510545]
[1745247920725,0.05303251,139.48,139.45,0.0510545]
[1745247921224,7.1687,139.47,139.45,0.0510545]
[1745247922227,0.05303251,139.48,139.45,0.0510545]
[1745247922429,0.05303251,139.48,139.46,7.1685]
[1745247922729,0.05303251,139.48,139.45,0.0510545]
[1745247922928,0.05303251,139.48,139.46,7.1686]
[1745247923129,0.05303251,139.48,139.46,30.34]
[1745247923623,0.05303251,139.48,139.46,37.5086]
[1745247923832,0.05303251,139.48,139.46,30.34]
[1745247924027,0.05303251,139.48,139.45,0.0510545]
[1745247924226,18.86460868,139.46,139.45,0.0510545]
[1745247924825,26.03350868,139.46,139.45,0.0510545]
[1745247925930,7.1689,139.46,139.45,0.0510545]
[1745247927029,18.86460868,139.46,139.4,30.32]
[1745247927529,7.1712,139.42,139.4,30.32]
[1745247928132,7.22461512,139.42,139.4,30.36986998]
[1745247928431,0.05341512,139.42,139.4,37.54176998]
[1745247928931,0.05341512,139.42,139.4,37.54166998]
[1745247929731,0.05341512,139.42,139.41,7.1715]
[1745247931229,7.22431512,139.42,139.4,37.54156998]
[1745247932934,0.05341512,139.42,139.4,37.54156998]
[1745247933129,0.05341512,139.42,139.41,7.1715]
[1745247933530,0.05341512,139.42,139.4,37.54156998]
[1745247934735,7.22441512,139.42,139.4,37.54156998]
[1745247934935,0.05341512,139.42,139.4,37.54156998]
[1745247935135,0.05341512,139.42,139.41,7.1715]
[1745247935337,0.05341512,139.42,139.4,30.36986998]
[1745247935844,7.22461512,139.42,139.4,37.54156998]
[1745247936028,0.05341512,139.42,139.4,30.36986998]
[1745247936438,7.1715,139.41,139.4,30.36986998]
[1745247937237,7.1715,139.41,139.4,0.04986998]
[1745247937737,7.173,139.38,139.37,30.34]
[1745247938436,6.1893,139.45,139.37,30.34]
[1745247938634,6.1893,139.45,139.38,7.1727]
[1745247938841,7.1717,139.41,139.4,0.05463388]
[1745247943545,7.22464867,139.42,139.4,0.05463388]
[1745247943741,0.05344867,139.42,139.4,0.05463388]
[1745247944348,7.1715,139.41,139.4,0.05463388]
[1745247947247,18.91805735,139.42,139.33,30.28]
[1745247947441,18.86460868,139.38,139.33,30.28]
[1745247947945,18.86460868,139.4,139.33,30.28]
[1745247948144,1.9243,139.39,139.33,30.28]
[1745247948446,18.86460868,139.37,139.35,0.05504298]
[1745247948752,7.174,139.36,139.35,0.05504298]
[1745247949752,7.1751,139.34,139.33,30.28]
[1745247950246,18.86460868,139.37,139.3,30.28]
[1745247950447,18.86460868,139.35,139.3,30.28]
[1745247950852,0.04642663,139.34,139.31,0.04543669]
[1745247951855,7.1765,139.32,139.31,0.04543669]
[1745247954949,7.1781,139.29,139.27,30.3]
[1745247955351,22.94790868,139.33,139.27,30.3]
[1745247956256,0.04823143,139.31,139.27,30.3]
[1745247957358,7.1781,139.29,139.27,30.3]
[1745247957655,7.1781,139.29,139.2,402.65972715]
[1745247957656,18.86460868,139.28,139.23,30.3]
[1745247958055,7.1802,139.24,139.23,30.3]
[1745247959263,18.86460868,139.26,139.2,30.3]
[1745247959558,18.86460868,139.24,139.17,598.58]
[1745247959757,18.91944107,139.24,139.17,598.58]
[1745247960058,18.86460868,139.22,139.17,30.3]
[1745247960255,18.86460868,139.22,139.14,30.3]
[1745247960453,18.86460868,139.2,139.14,30.3]
[1745247960954,18.86460868,139.18,139.14,30.3]
[1745247961152,18.86460868,139.16,139.11,30.3]
[1745247961658,18.86460868,139.14,139.09,32.7794539]
[1745247961859,2.0091,139.15,139.09,32.7794539]
[1745247962058,0.0456011,139.13,139.1,7.1874]
[1745247962253,0.0456011,139.13,139.08,30.3]
[1745247962459,0.0456011,139.13,139.09,18.86460868]
[1745247962664,0.0456011,139.13,139.1,7.1873]
[1745247962955,0.0456011,139.13,139.11,18.86460868]
[1745247963261,2.0126,139.21,139.12,30.32]
[1745247963463,2.0126,139.21,139.14,18.86460868]
[1745247963857,20.87720868,139.21,139.13,2.0361]
[1745247964261,0.04758136,139.18,139.16,0.04976137]
[1745247965264,7.1839,139.17,139.16,0.04976137]
[1745247965459,0.04758136,139.18,139.16,0.04976137]
[1745247966660,7.23118136,139.18,139.16,0.04976137]
[1745247967164,0.04758136,139.18,139.16,0.04976137]
[1745247968164,7.23088136,139.18,139.16,0.04976137]
[1745247968364,7.23088136,139.18,139.16,30.36976137]
[1745247968565,0.04758136,139.18,139.16,30.36976137]
[1745247969965,7.1838,139.17,139.16,0.04976137]
[1745247970266,0.04758136,139.18,139.11,30.34]
[1745247970465,7.1847,139.16,139.12,7.186]
[1745247970867,7.1847,139.16,139.11,30.34]
[1745247971064,7.1849,139.15,139.11,30.34]
[1745247971268,7.23456081,139.15,139.11,30.34]
[1745247971971,7.23456081,139.15,139.11,37.5267]
[1745247974171,7.1854,139.14,139.11,37.5267]
[1745247974973,7.1862,139.13,139.11,30.34]
[1745247975175,0.04966081,139.15,139.11,30.34]
[1745247975674,7.1855,139.14,139.11,37.5266]
[1745247975973,0.04966081,139.15,139.11,37.5266]
[1745247976277,7.1859,139.13,139.11,30.34]
[1745247976577,0.04966081,139.15,139.11,30.34]
[1745247976876,7.1856,139.14,139.11,37.5269]
[1745247977077,0.04966081,139.15,139.11,37.5269]
[1745247977272,0.04966081,139.15,139.11,30.34]
[1745247977573,7.1862,139.13,139.11,30.34]
[1745247978676,0.04966081,139.15,139.11,30.34]
[1745247978677,7.1864,139.12,139.11,30.34]
[1745247979377,0.04966081,139.15,139.08,30.28]
[1745247979582,30.25085247,139.15,139.08,30.28]
[1745247979876,0.05021956,139.13,139.04,30.28]
[1745247980071,30.25085247,139.12,139.04,30.28]
[1745247980276,0.04928695,139.1,139.04,30.28]
[1745247981077,7.1893,139.07,139.04,37.4703]
[1745247981378,1.9461,139.11,139.04,30.28]
[1745247981580,0.04993817,139.07,139.04,30.28]
[1745247981882,7.23923817,139.07,139.04,37.4702]
[1745247982087,0.04993817,139.07,139.04,30.28]
[1745247983683,7.23893817,139.07,139.04,37.4701]
[1745247984277,30.25085247,139.15,139.04,30.28]
[1745247984475,30.25085247,139.21,139.09,30.25085247]
[1745247984678,30.25085247,139.21,139.1,32.378]
[1745247984878,30.25085247,139.21,139.14,7.185]
[1745247985178,30.25085247,139.21,139.14,37.485]
[1745247985575,0.05457342,139.19,139.16,0.04585747]
[1745247987285,7.1838,139.17,139.16,0.04585747]
[1745247989681,49.21514079,139.18,139.11,30.3]
[1745247989888,18.91514079,139.15,139.08,30.3]
[1745247990082,18.91514079,139.13,139.07,30.3]
[1745247990383,7.1873,139.11,139.07,37.4887]
[1745247990784,0.04748661,139.1,139.07,37.4887]
[1745247990987,7.23498661,139.1,139.07,37.4887]
[1745247991683,0.04748661,139.1,139.08,7.1884]
[1745247991885,0.04748661,139.1,139.07,30.3]
[1745247992085,0.04748661,139.1,139.07,37.4885]
[1745247992287,7.23528661,139.1,139.07,37.4885]
[1745247992884,7.23528661,139.1,139.08,7.1884]
[1745247992885,0.04748661,139.1,139.08,7.1884]
[1745247993090,0.04748661,139.1,139.07,30.3]
[1745247993392,0.04748661,139.1,139.09,7.188]
[1745247993790,7.1856,139.14,139.08,18.91514079]
[1745247993993,7.1856,139.14,139.11,7.1866]
[1745247994190,7.1856,139.14,139.11,37.4866]
[1745247994696,7.1859,139.13,139.11,37.4866]
[1745247994890,7.1859,139.13,139.11,37.53771388]
[1745247995494,7.1859,139.13,139.11,30.35111388]
[1745247996092,7.1864,139.12,139.11,30.35111388]
[1745247996492,7.1864,139.12,139.11,0.05111388]
[1745247997692,18.91514079,139.12,139.05,37.4898]
[1745247997895,18.91514079,139.12,139.05,30.3]
[1745247998194,7.188,139.09,139.05,30.3]
[1745247998492,18.91514079,139.12,139.05,30.3]
[1745247998688,0.05132127,139.1,139.05,30.3]
[1745247998988,7.1882,139.09,139.06,7.1892]
[1745247999488,7.1886,139.08,139.05,37.4898]
[1745247999792,0.05132127,139.1,139.05,37.4898]
[1745248000390,0.05132127,139.1,139.05,30.3]
[1745248001087,7.1892,139.07,139.05,37.49]
[1745248001896,7.1892,139.07,139.05,30.3]
[1745248002196,0.05132127,139.1,139.05,30.3]
[1745248002896,7.1892,139.07,139.05,30.3]
[1745248003405,7.1895,139.06,139.05,30.3]
[1745248003596,3.9345,139.11,139.05,37.83477634]
[1745248003798,0.05356721,139.07,139.05,30.3]
[1745248003998,0.05356721,139.07,139.06,7.53452095]
[1745248004300,0.05356721,139.07,139.05,30.3]
[1745248004895,7.1895,139.06,139.05,30.3]
[1745248005190,30.29356721,139.07,138.93,361.0]
[1745248005393,30.29431626,139.08,138.95,62.56851626]
[1745248005593,48.60341626,139.11,138.98,30.29431626]
[1745248005594,0.05349108,139.02,138.98,30.29431626]
[1745248005791,30.24,139.09,138.99,30.24]
[1745248006000,7.1901,139.05,138.99,30.24]
[1745248006200,7.23962957,139.05,138.99,30.24]
[1745248006800,7.1906,139.04,138.99,30.24]
[1745248007200,7.1906,139.04,139.0,7.1924]
[1745248007500,0.04952957,139.05,138.99,30.24]
[1745248007701,0.04952957,139.05,139.01,7.1918]
[1745248008002,7.1907,139.04,139.01,7.1918]
[1745248008299,0.04952957,139.05,138.99,30.24]
[1745248008502,7.1914,139.03,138.99,30.24]
[1745248008801,7.1914,139.03,139.0,7.1924]
[1745248009103,7.1914,139.03,138.99,30.24]
[1745248009505,7.1914,139.03,139.0,7.1923]
[1745248011504,0.04952957,139.05,138.99,37.433]
[1745248011703,0.04952957,139.05,138.99,30.24]
[1745248011904,32.40292957,139.05,138.99,30.24]
[1745248012105,34.31962957,139.05,138.99,30.24]
[1745248012504,32.40292957,139.05,138.99,30.24]
[1745248012703,2.14292957,139.05,138.99,30.24]
[1745248012904,7.1917,139.02,139.0,7.1923]
[1745248013104,2.14292957,139.05,138.99,30.24]
[1745248013306,32.2396,139.08,138.99,30.24]
[1745248013500,0.04839077,139.03,138.99,30.24]
[1745248015200,0.04839077,139.03,139.02,7.1916]
[1745248016011,1.9167,139.1,139.05,7.1896]
[1745248016205,30.26,139.11,139.01,30.29431626]
[1745248016206,30.26,139.11,139.03,30.26]
[1745248016504,7.1883,139.09,139.06,7.1893]
[1745248016806,7.1886,139.08,139.06,7.1893]
[1745248017106,7.23934965,139.08,139.06,7.23706775]
[1745248018204,30.34506591,139.08,139.0,30.26]
[1745248018412,30.26,139.07,139.0,30.26]
[1745248018618,34.2372,139.07,139.0,30.26]
[1745248018819,7.1917,139.02,139.0,30.26]
[1745248019215,7.1903,139.05,139.0,37.4524]
[1745248019419,0.04612887,139.02,139.0,37.4524]
[1745248019619,34.2372,139.07,139.0,37.4524]
[1745248019820,0.05284769,139.02,139.0,37.4524]
[1745248020020,7.1905,139.05,139.0,37.4524]
[1745248020319,0.05196793,139.02,139.0,37.4524]
[1745248020917,0.05196793,139.02,138.94,30.26]
[1745248021121,18.94665487,139.01,138.94,30.26]
[1745248021416,7.1944,138.97,138.94,30.26]
[1745248021619,0.05151481,138.99,138.94,30.26]
[1745248022119,7.1945,138.97,138.94,30.26]
[1745248022622,7.1949,138.96,138.94,30.26]
[1745248022922,0.05151481,138.99,138.95,18.94665487]
[1745248023219,0.05151481,138.99,138.94,30.26]
[1745248023220,30.26,139.09,138.97,18.94665487]
[1745248023413,30.26,139.09,138.98,64.35516688]
[1745248023618,7.1898,139.06,138.98,64.35516688]
[1745248023924,7.1898,139.06,139.01,7.1919]
[1745248024119,7.1898,139.06,139.02,30.26]
[1745248024321,0.05319508,139.05,139.02,30.31419386]
[1745248024823,7.1909,139.04,139.02,30.31188939]
[1745248025221,0.04738232,139.05,139.02,30.31188939]
[1745248025417,0.04738232,139.05,139.02,0.05188939]
[1745248025617,30.30426688,139.03,138.95,30.26]
[1745248025822,7.1944,138.97,138.94,30.26]
[1745248026323,7.1952,138.95,138.94,30.26]
[1745248026626,0.04646732,138.96,138.91,599.54]
[1745248027022,0.04646732,138.96,138.91,30.26]
[1745248028128,7.1962,138.94,138.91,30.26]
[1745248029326,7.1963,138.93,138.91,30.26]
[1745248029727,7.1959,138.94,138.91,30.26]
[1745248030326,7.1953,138.95,138.91,30.26]
[1745248030627,0.04646732,138.96,138.91,30.26]
[1745248031724,7.24146732,138.96,138.92,7.1963]
[1745248032327,7.1952,138.95,138.92,7.1963]
[1745248032731,0.04646732,138.96,138.92,7.1963]
[1745248033030,7.24136732,138.96,138.92,7.1963]
[1745248033430,7.24136732,138.96,138.93,7.1961]
[1745248034830,0.04646732,138.96,138.91,30.26]
[1745248035635,0.04646732,138.96,138.87,30.22]
[1745248035832,1.9123,138.97,138.87,30.22]
[1745248036131,7.1976,138.91,138.87,30.22]
[1745248036331,0.04677855,138.93,138.87,30.22]
[1745248036630,7.1981,138.9,138.87,37.4191]
[1745248037134,7.1983,138.89,138.87,30.22]
[1745248037829,0.05531375,138.9,138.87,30.22]
[1745248038836,0.05531375,138.9,138.84,569.54]
[1745248038837,0.05531375,138.9,138.84,599.76]
[1745248039134,7.1998,138.87,138.84,606.9608]
[1745248039324,7.1998,138.87,138.78,391.30426688]
[1745248039325,30.30426688,138.89,138.78,361.0]
[1745248039532,7.2016,138.83,138.79,7.2031]
[1745248040131,0.05250332,138.82,138.79,7.2031]
[1745248040327,0.05250332,138.82,138.73,33.68381789]
[1745248040528,0.05250332,138.82,138.75,30.22]
[1745248040727,32.27126688,138.86,138.75,30.22]
[1745248041034,30.30426688,138.83,138.75,30.22]
[1745248041235,0.05501765,138.82,138.75,30.22]
[1745248041433,7.2029,138.81,138.75,30.22]
[1745248041736,0.05501765,138.82,138.75,30.22]
[1745248042628,0.05501765,138.82,138.79,7.2034]
[1745248043142,7.25741765,138.82,138.77,7.2045]
[1745248043435,7.25741765,138.82,138.75,30.22]
[1745248043635,0.05501765,138.82,138.75,30.22]
[1745248044030,2.02271765,138.82,138.75,30.22]
[1745248044628,0.05501765,138.82,138.75,30.22]
[1745248044836,0.05501765,138.82,138.81,7.2025]
[1745248045131,0.05501765,138.82,138.81,37.4425]
[1745248047138,0.05501765,138.82,138.77,30.24]
[1745248047336,32.207,138.86,138.77,30.24]
[1745248047538,7.2051,138.76,138.71,30.24]
[1745248047739,30.24,138.8,138.71,30.24]
[1745248048238,7.2558411,138.77,138.69,30.24]
[1745248048440,0.0510411,138.77,138.69,30.24]
[1745248048644,7.2557411,138.77,138.73,7.2063]
[1745248049038,0.0510411,138.77,138.73,30.24]
[1745248049942,7.2053,138.76,138.73,37.4464]
[1745248050136,0.0510411,138.77,138.73,30.24]
[1745248051147,7.2556411,138.77,138.73,30.24]
[1745248051339,0.0510411,138.77,138.73,30.24]
[1745248051843,7.2053,138.76,138.73,37.4463]
[1745248052847,0.0510411,138.77,138.73,30.24]
[1745248054046,7.2066,138.73,138.7,37.4682]
[1745248054248,4.1185,138.79,138.7,30.26]
[1745248054542,7.2071,138.73,138.7,37.468]
[1745248054946,30.30426688,138.78,138.7,30.26]
[1745248055247,0.04596741,138.73,138.67,30.26]
[1745248055645,7.2074,138.72,138.69,7.2084]
[1745248055845,0.04596741,138.73,138.67,30.26]
[1745248056150,7.25286741,138.73,138.7,7.208]
[1745248056350,0.04596741,138.73,138.67,60.56426688]
[1745248057250,0.04596741,138.73,138.71,7.2074]
[1745248057448,0.04596741,138.73,138.71,30.26]
[1745248057748,0.04596741,138.73,138.72,7.2071]
[1745248058350,4.1185,138.79,138.75,7.2053]
[1745248058351,7.2043,138.78,138.75,7.2053]
[1745248058850,7.2046,138.77,138.75,7.2053]
[1745248059051,7.2046,138.77,138.74,7.2059]
[1745248059351,7.25198926,138.77,138.74,7.2543253]
[1745248060145,0.04738926,138.77,138.74,0.0484253]
[1745248060350,0.04738926,138.77,138.65,600.46]
[1745248060551,7.2063,138.74,138.71,7.2073]
[1745248061053,32.24066688,138.78,138.71,7.2073]
[1745248061244,32.24066688,138.78,138.67,1.9237]
[1745248061447,0.04651215,138.76,138.67,1.9237]
[1745248061646,7.2074,138.72,138.67,1.9237]
[1745248062146,0.04836173,138.73,138.69,7.2083]
[1745248062351,0.04836173,138.73,138.67,1.9237]
[1745248062953,7.2079,138.71,138.67,1.9237]
[1745248063456,7.2073,138.72,138.69,7.2087]
[1745248063954,0.04836173,138.73,138.69,7.2087]
[1745248064254,0.04836173,138.73,138.68,7.209]
[1745248064455,0.04836173,138.73,138.65,600.46]
[1745248064855,0.04836173,138.73,138.67,7.2095]
[1745248065059,0.04836173,138.73,138.65,600.46]
[1745248065259,60.52426688,138.72,138.65,30.26]
[1745248065452,2.0144,138.71,138.65,37.4705]
[1745248065653,0.04741039,138.7,138.65,30.26]
[1745248065853,7.209,138.69,138.65,30.26]
[1745248066159,7.209,138.69,138.66,7.2099]
[1745248066353,0.04741039,138.7,138.65,30.26]
[1745248066550,0.04741039,138.7,138.69,7.2087]
[1745248066858,0.04741039,138.7,138.69,37.4287]
[1745248067350,0.04741039,138.7,138.66,30.22]
[1745248067850,0.04741039,138.7,138.68,7.2088]
[1745248068156,0.04741039,138.7,138.66,30.22]
[1745248068651,0.04741039,138.7,138.69,7.2087]
[1745248068857,0.04741039,138.7,138.66,30.22]
[1745248069058,0.04741039,138.7,138.69,7.2087]
[1745248069755,2.0144,138.75,138.71,7.2072]
[1745248069953,2.0144,138.75,138.7,30.22]
[1745248070462,2.0144,138.75,138.71,7.2074]
[1745248070855,2.0144,138.75,138.7,30.22]
[1745248071156,7.2066,138.73,138.72,0.05014556]
[1745248072061,7.25528458,138.74,138.72,0.05014556]
[1745248072259,0.04888458,138.74,138.72,0.05014556]
[1745248072561,0.04888458,138.74,138.67,30.22]
[1745248072951,30.26888458,138.74,138.67,30.22]
[1745248073351,0.04888458,138.74,138.67,30.22]
[1745248073557,7.25528458,138.74,138.71,7.2074]
[1745248073863,0.04888458,138.74,138.71,7.2074]
[1745248074060,0.04888458,138.74,138.69,7.2086]
[1745248074261,0.04888458,138.74,138.67,30.22]
[1745248074670,7.2079,138.71,138.68,7.2089]
[1745248074869,30.30426688,138.75,138.68,7.2089]
[1745248075171,0.05505832,138.71,138.68,7.2089]
[1745248075471,7.26295832,138.71,138.68,7.2089]
[1745248075672,7.26295832,138.71,138.69,7.2086]
[1745248075866,0.05505832,138.71,138.67,30.22]
[1745248076469,7.26295832,138.71,138.67,30.22]
[1745248076767,7.26295832,138.71,138.68,7.2089]
[1745248076971,7.2085,138.7,138.67,30.22]
[1745248077268,0.05505832,138.71,138.67,30.22]
[1745248077567,0.05505832,138.71,138.64,30.24]
[1745248078172,7.2095,138.68,138.64,30.24]
[1745248078470,30.30426688,138.72,138.64,30.24]
[1745248078671,0.04752995,138.67,138.64,30.24]
[1745248078872,0.04752995,138.67,138.65,7.2105]
[1745248079173,0.04752995,138.67,138.64,30.24]
[1745248079668,7.2102,138.66,138.64,30.24]
[1745248079870,0.04752995,138.67,138.64,30.24]
[1745248080070,7.2106,138.66,138.64,30.24]
[1745248080270,0.04752995,138.67,138.64,30.24]
[1745248081072,0.04752995,138.67,138.65,7.2104]
[1745248081369,0.04752995,138.67,138.64,30.24]
[1745248081563,0.04752995,138.67,138.63,7.2115]
[1745248081762,7.2104,138.66,138.61,30.24]
[1745248082072,0.04752995,138.67,138.64,7.211]
[1745248082272,7.2103,138.66,138.61,30.24]
[1745248082771,7.2103,138.66,138.63,7.2115]
[1745248083071,7.211,138.65,138.62,7.2121]
[1745248083273,7.211,138.65,138.61,30.24]
[1745248083569,7.211,138.65,138.62,7.212]
[1745248083773,7.211,138.65,138.61,30.24]
[1745248084172,0.04752995,138.67,138.61,30.24]
[1745248084668,0.04752995,138.67,138.63,19.05535407]
[1745248085172,0.04752995,138.67,138.66,7.2102]
[1745248085373,0.04752995,138.67,138.65,30.24]
[1745248085873,0.04752995,138.67,138.65,37.4505]
[1745248086171,0.04752995,138.67,138.65,30.24]
[1745248086372,0.04752995,138.67,138.62,30.24]
[1745248086572,0.04752995,138.67,138.63,7.2114]
[1745248086573,7.2105,138.66,138.63,7.2114]